bitfinex/quotes_ETHUSD_20251124
["timestamp","ask_amount","ask_price","bid_price","bid_amount"]
[1763956189525,0.222,2859.6,2858.9,0.4982]
[1763956189698,0.6727,2859.6,2858.6,0.4982]
[1763956189899,0.32478594,2859.5,2858.6,0.4982]
[1763956190127,0.32478594,2859.5,2858.6,0.5982]
[1763956190427,0.32478594,2859.5,2859.0,0.1]
[1763956190615,0.6727,2859.6,2858.6,0.5982]
[1763956190818,0.32478594,2859.5,2858.6,0.5982]
[1763956191627,0.32478594,2859.5,2858.9,0.1]
[1763956192607,0.32478594,2859.5,2859.4,0.6814]
[1763956192807,0.222,2859.6,2859.4,0.7814]
[1763956193117,0.222,2859.6,2859.5,0.4966]
[1763956193326,0.222,2859.6,2859.5,1.0948]
[1763956193831,0.002,2859.7,2859.5,0.9948]
[1763956194035,0.002,2859.7,2859.6,1.0948]
[1763956194611,0.002,2859.7,2859.6,0.9948]
[1763956194944,0.002,2859.7,2859.6,0.4966]
[1763956195152,0.002,2859.7,2859.6,0.9948]
[1763956195739,0.002,2859.7,2859.2,0.1848]
[1763956195943,0.002,2859.7,2859.2,0.2848]
[1763956196151,0.002,2859.7,2859.2,0.783]
[1763956198338,0.4527,2859.7,2858.9,0.1]
[1763956199390,0.002,2859.7,2858.9,0.5982]
[1763956200170,0.32489662,2859.8,2858.9,0.5982]
[1763956200563,0.1866,2859.9,2859.2,0.1]
[1763956200761,0.90699264,2859.8,2858.5,0.4982]
[1763956200961,0.78391846,2859.7,2858.5,0.5982]
[1763956201146,0.32489662,2859.6,2858.5,0.5982]
[1763956201350,0.32489662,2859.6,2858.4,0.001]
[1763956201351,1.23188926,2859.5,2858.4,0.001]
[1763956201562,0.54689662,2859.4,2858.4,0.4992]
[1763956201737,0.54689662,2859.4,2858.4,0.001]
[1763956201937,0.90699264,2859.3,2858.4,0.001]
[1763956202143,1.10228555,2859.2,2858.4,0.5992]
[1763956202370,0.32489662,2859.1,2858.5,0.1]
[1763956202671,0.32489662,2859.1,2858.4,0.4992]
[1763956202873,0.32489662,2859.1,2858.7,0.1]
[1763956203184,0.32489662,2859.1,2858.9,0.001]
[1763956203387,0.52582444,2859.1,2859.0,0.4966]
[1763956203692,0.54689662,2859.1,2858.9,0.001]
[1763956203854,1.03299662,2859.0,2858.9,0.001]
[1763956204056,0.32489662,2859.0,2858.9,0.001]
[1763956204251,0.222,2859.1,2858.9,0.001]
[1763956204456,0.2572,2859.0,2858.9,0.001]
[1763956204689,0.54689662,2859.1,2858.9,0.001]
[1763956204990,0.90699264,2859.3,2858.9,0.001]
[1763956204991,0.90699264,2859.3,2859.0,0.9948]
[1763956205293,0.54820622,2859.2,2859.0,0.9948]
[1763956205795,0.54820622,2859.2,2859.1,0.4966]
[1763956205991,0.54820622,2859.2,2859.1,0.6814]
[1763956206389,0.54820622,2859.2,2859.1,0.4966]
[1763956206570,0.54820622,2859.2,2858.9,0.001]
[1763956206571,0.54820622,2859.2,2858.9,0.101]
[1763956206773,0.54820622,2859.2,2858.9,0.5556]
[1763956207570,1.39799603,2859.2,2858.9,0.001]
[1763956207761,0.32620622,2859.1,2858.9,0.001]
[1763956208698,0.2398,2859.0,2858.9,0.001]
[1763956208863,0.32620622,2859.0,2858.9,0.001]
[1763956209068,0.32620622,2859.1,2858.9,0.4696]
[1763956209475,0.32620622,2859.1,2858.9,0.001]
[1763956209678,1.03450622,2859.0,2858.9,0.001]
[1763956209882,8.26149886,2859.0,2858.9,0.001]
[1763956211297,11.75922533,2859.0,2858.9,0.001]
[1763956213294,19.73147666,2859.0,2858.9,0.001]
[1763956213491,11.75922533,2859.0,2858.9,0.001]
[1763956213699,17.55794667,2859.0,2858.9,0.001]
[1763956213871,16.11879067,2859.0,2858.9,0.001]
[1763956214504,23.49177967,2859.0,2858.9,0.001]
[1763956215403,19.08763067,2859.0,2858.9,0.001]
[1763956216105,0.90699264,2858.8,2858.6,0.001]
[1763956216304,1.23529886,2858.7,2858.6,0.001]
[1763956216606,1.92559886,2858.7,2858.6,0.001]
[1763956216803,1.45729886,2858.7,2858.6,0.001]
[1763956217303,1.45519886,2858.7,2858.6,0.001]
[1763956220015,2.16099886,2858.7,2858.6,0.001]
[1763956220177,2.37709875,2858.7,2858.6,0.001]
[1763956221307,5.87519228,2858.7,2858.6,0.001]
[1763956221935,12.74863261,2858.7,2858.6,0.001]
[1763956222275,19.22180161,2858.7,2858.6,0.001]
[1763956222881,19.22180161,2858.7,2858.4,0.001]
[1763956222882,8.905967,2858.5,2858.4,0.001]
[1763956223189,4.28039586,2858.5,2858.4,0.001]
[1763956223520,2.15859886,2858.5,2858.4,0.001]
[1763956224017,5.65693714,2858.5,2858.4,0.001]
[1763956226926,11.94598014,2858.5,2858.4,0.001]
[1763956227122,14.18148257,2858.5,2858.4,0.001]
[1763956227725,7.89243957,2858.5,2858.4,0.001]
[1763956228721,7.20265845,2858.5,2858.4,0.001]
[1763956228889,3.92732017,2858.5,2858.4,0.001]
[1763956229915,3.69222017,2858.5,2858.4,0.001]
[1763956230136,1.45671774,2858.5,2858.4,0.001]
[1763956230488,1.95041774,2858.5,2858.4,0.001]
[1763956231608,1.45671774,2858.5,2858.4,0.4696]
[1763956231808,0.3267251,2858.5,2858.4,0.9242]
[1763956231990,0.3267251,2859.2,2858.4,0.9242]
[1763956232197,0.223,2859.1,2858.5,0.5546]
[1763956232724,0.223,2859.1,2858.5,0.4546]
[1763956234045,0.223,2859.1,2859.0,0.4686]
[1763956234457,0.223,2859.1,2859.0,0.9232]
[1763956234739,0.5497251,2859.1,2859.0,0.4686]
[1763956235044,0.223,2859.1,2859.0,0.4686]
[1763956235259,0.223,2859.1,2858.4,0.001]
[1763956235260,0.4628,2859.1,2858.4,0.4556]
[1763956235459,0.3267251,2859.0,2858.5,0.4546]
[1763956235664,0.3267251,2859.0,2858.4,0.001]
[1763956235665,1.23371774,2859.0,2858.4,0.001]
[1763956235945,0.89274717,2858.9,2858.4,0.001]
[1763956236241,0.3267251,2858.8,2858.4,0.001]
[1763956236448,0.223,2858.7,2858.4,0.001]
[1763956236642,1.45671774,2858.7,2858.4,0.001]
[1763956236945,0.3267251,2858.6,2858.4,0.001]
[1763956237146,0.223,2858.7,2858.6,0.4818]
[1763956237547,0.223,2858.7,2858.4,0.001]
[1763956237719,0.223,2858.7,2858.6,0.4818]
[1763956238057,0.55016786,2858.7,2858.6,0.4818]
[1763956238266,0.223,2858.7,2858.4,0.4648]
[1763956238756,0.225,2858.7,2858.6,0.4818]
[1763956238958,0.55216786,2858.7,2858.6,0.4818]
[1763956239255,0.225,2858.7,2858.6,0.4818]
[1763956239632,0.55216786,2858.7,2858.4,0.001]
[1763956239838,0.32716786,2858.6,2858.4,0.001]
[1763956240035,0.225,2858.7,2858.4,0.001]
[1763956240240,0.55216786,2858.7,2858.4,0.001]
[1763956240452,0.32716786,2858.6,2858.4,0.001]
[1763956240761,0.55216786,2858.7,2858.6,0.4818]
[1763956240941,0.225,2858.7,2858.6,0.4818]
[1763956241344,0.55216786,2858.7,2858.6,0.9456]
[1763956241754,0.225,2858.7,2858.6,0.9456]
[1763956242129,0.225,2858.7,2858.6,0.4818]
[1763956242459,0.225,2858.7,2858.6,0.9456]
[1763956242660,0.55216786,2858.7,2858.6,0.9456]
[1763956243035,0.4586,2858.7,2858.4,0.001]
[1763956243362,0.4573,2858.5,2858.4,0.001]
[1763956243532,0.97805391,2858.5,2858.4,0.001]
[1763956243933,0.52075391,2858.5,2858.4,0.4828]
[1763956244128,0.32716786,2858.5,2858.4,0.4828]
[1763956244430,0.32716786,2858.6,2858.4,0.4828]
[1763956244830,0.55216786,2858.7,2858.4,0.4828]
[1763956245969,0.32716786,2858.6,2858.4,0.4599]
[1763956246172,0.225,2858.7,2858.6,0.4566]
[1763956246543,0.9333,2858.7,2858.4,0.001]
[1763956246865,0.0022,2858.5,2858.4,0.001]
[1763956247063,0.32726153,2858.6,2858.4,0.001]
[1763956247366,0.225,2858.7,2858.4,0.001]
[1763956247553,1.45925417,2858.7,2858.4,0.001]
[1763956247736,0.82298577,2858.6,2858.4,0.001]
[1763956248065,0.32726153,2858.5,2858.4,0.4599]
[1763956248280,0.32726153,2858.5,2858.4,0.001]
[1763956248434,0.32726153,2858.6,2858.4,0.001]
[1763956248635,0.55226153,2858.7,2858.4,0.001]
[1763956248841,0.32726153,2858.6,2858.4,0.001]
[1763956250040,0.55226153,2858.7,2858.5,0.9155]
[1763956250240,0.225,2858.7,2858.6,0.4566]
[1763956250534,0.225,2858.7,2858.6,0.9155]
[1763956251365,0.55223668,2858.7,2858.6,0.9155]
[1763956251571,0.225,2858.7,2858.6,0.9155]
[1763956252455,0.55223668,2858.7,2858.6,0.9155]
[1763956253140,0.225,2858.7,2858.6,0.9155]
[1763956253965,0.225,2858.7,2858.6,0.4566]
[1763956254258,0.225,2858.7,2858.4,0.001]
[1763956254453,0.225,2858.7,2858.4,0.4599]
[1763956254761,0.225,2858.7,2858.6,0.4566]
[1763956254960,0.55223668,2858.7,2858.6,0.4566]
[1763956255172,0.225,2858.7,2858.6,0.4566]
[1763956255377,0.225,2858.7,2858.4,0.4599]
[1763956255564,0.55223668,2858.7,2858.4,0.4599]
[1763956255751,0.32723668,2858.6,2858.4,0.4599]
[1763956255952,0.225,2858.7,2858.4,0.4599]
[1763956256152,0.32723668,2858.6,2858.4,0.4599]
[1763956256577,0.225,2858.7,2858.5,0.4566]
[1763956256769,0.225,2858.7,2858.6,0.4566]
[1763956256971,0.55223668,2858.7,2858.6,0.4566]
[1763956257281,0.55223668,2858.7,2858.6,0.9155]
[1763956259885,0.55223668,2858.7,2858.5,0.001]
[1763956260053,0.32723668,2858.6,2858.5,0.001]
[1763956260585,0.81293668,2858.6,2858.5,0.001]
[1763956260889,1.24522961,2858.6,2858.5,0.001]
[1763956261352,1.00742961,2858.6,2858.5,0.001]
[1763956261689,0.52172961,2858.6,2858.5,0.4576]
[1763956261890,0.32723668,2858.6,2858.5,0.4576]
[1763956262088,0.32723668,2858.6,2858.5,0.9165]
[1763956262268,0.54923668,2858.6,2858.5,1.0165]
[1763956262585,0.54923668,2858.6,2858.5,0.9165]
[1763956262888,0.54923668,2858.6,2858.5,1.0165]
[1763956263276,0.54923668,2858.6,2858.5,0.4576]
[1763956263585,0.54923668,2858.6,2858.5,0.9165]
[1763956263785,0.54923668,2858.6,2858.5,1.0165]
[1763956265371,0.55034212,2858.6,2858.5,1.0165]
[1763956268003,0.222,2858.6,2858.5,1.0165]
[1763956268596,0.002,2858.7,2858.5,0.9165]
[1763956268806,0.002,2858.7,2858.6,1.0419]
[1763956271114,0.002,2858.7,2858.6,0.9419]
[1763956271606,0.002,2858.7,2858.6,1.0419]
[1763956272708,0.002,2858.7,2858.6,0.9419]
[1763956273703,0.002,2858.7,2858.6,0.4726]
[1763956275275,0.002,2858.7,2858.6,1.0419]
[1763956275675,0.224,2859.0,2858.6,1.0419]
[1763956275676,0.002,2859.0,2858.6,1.0419]
[1763956275991,0.222,2858.9,2858.5,0.001]
[1763956276192,0.54971418,2858.9,2858.5,0.001]
[1763956276398,0.54971418,2858.9,2858.6,0.4693]
[1763956276598,0.54971418,2858.9,2858.8,0.4726]
[1763956277012,0.82141418,2858.9,2858.6,0.1]
[1763956277313,0.32771418,2858.8,2858.5,0.4703]
[1763956277907,0.54971418,2858.9,2858.5,0.4703]
[1763956278511,0.32771418,2858.8,2858.5,0.001]
[1763956278818,0.4695,2858.6,2858.5,0.001]
[1763956279319,0.32771418,2858.6,2858.5,0.001]
[1763956279507,0.32771418,2858.8,2858.5,0.4736]
[1763956279707,0.32771418,2858.7,2858.5,0.4736]
[1763956279908,0.32771418,2858.8,2858.5,0.4736]
[1763956280110,0.32771418,2858.7,2858.5,0.4736]
[1763956280304,0.32771418,2858.8,2858.5,0.4736]
[1763956280605,0.32771418,2858.7,2858.5,0.4736]
[1763956280804,0.32771418,2858.8,2858.5,0.001]
[1763956281118,0.32771418,2858.7,2858.5,0.001]
[1763956281313,0.32771418,2858.6,2858.5,0.001]
[1763956281615,0.79701418,2858.8,2858.5,0.001]
[1763956281823,0.32771418,2858.7,2858.5,0.001]
[1763956281985,0.32771418,2858.6,2858.5,0.001]
[1763956282187,0.32771418,2858.7,2858.5,0.001]
[1763956282485,0.32771418,2858.6,2858.5,0.001]
[1763956282720,0.32771418,2858.8,2858.5,0.001]
[1763956283022,0.32771418,2858.7,2858.5,0.001]
[1763956283226,0.32771418,2858.6,2858.5,0.001]
[1763956283405,0.32771418,2858.8,2858.5,0.001]
[1763956283609,0.32771418,2858.7,2858.5,0.4736]
[1763956283805,0.32771418,2858.6,2858.5,0.4736]
[1763956284008,0.79701418,2858.8,2858.5,0.001]
[1763956284307,0.2717,2858.6,2858.5,0.001]
[1763956284493,0.59941418,2858.6,2858.5,0.001]
[1763956284884,1.06671418,2858.6,2858.5,0.001]
[1763956285097,1.89608486,2858.6,2858.5,0.001]
[1763956285717,1.42878486,2858.6,2858.5,0.001]
[1763956286017,1.89608486,2858.6,2858.5,0.001]
[1763956288088,1.89608486,2858.6,2858.5,0.4736]
[1763956288089,0.32771418,2858.6,2858.5,0.4736]
[1763956288289,0.222,2858.6,2858.5,0.9429]
[1763956288489,0.54971418,2858.6,2858.5,0.9429]
[1763956289791,0.222,2858.6,2858.5,0.9429]
[1763956293788,0.54971418,2858.6,2858.5,0.9429]
[1763956294452,0.222,2858.6,2858.5,0.9429]
[1763956295095,0.002,2858.7,2858.5,0.9429]
[1763956295300,0.002,2858.7,2858.6,1.0419]
[1763956296134,0.002,2859.0,2858.6,0.9419]
[1763956296314,0.002,2859.0,2858.9,0.5726]
[1763956296525,0.002,2859.0,2858.9,0.4726]
[1763956296837,0.002,2859.0,2858.9,0.9258]
[1763956297000,0.002,2859.0,2858.9,1.0258]
[1763956297194,0.002,2859.0,2858.9,0.9258]
[1763956297798,0.002,2859.0,2858.9,1.0258]
[1763956299295,0.002,2859.0,2858.9,0.9258]
[1763956299498,0.4833,2859.0,2858.7,0.1]
[1763956299696,0.4833,2859.0,2858.5,0.5542]
[1763956300798,0.002,2859.0,2858.5,0.5542]
[1763956302037,0.002,2859.0,2858.9,0.4505]
[1763956302797,0.002,2859.0,2858.5,0.001]
[1763956303036,0.002,2859.0,2858.6,0.4532]
[1763956303235,0.002,2859.0,2858.9,0.4505]
[1763956304340,0.002,2859.0,2858.9,0.9333]
[1763956306840,0.002,2859.0,2858.9,0.4505]
[1763956307407,0.002,2859.0,2858.9,0.5505]
[1763956308448,0.002,2859.0,2858.9,1.0333]
[1763956313639,0.002,2859.0,2858.9,0.9333]
[1763956313838,0.002,2859.0,2858.9,1.0333]
[1763956315976,0.002,2859.0,2858.9,0.9333]
[1763956316136,0.002,2859.0,2858.9,1.47643296]
[1763956318274,0.002,2859.0,2858.9,0.99363296]
[1763956318448,0.002,2859.0,2858.9,1.47643296]
[1763956320744,0.002,2859.0,2858.9,4.97428178]
[1763956321276,0.002,2859.3,2858.9,8.40710908]
[1763956321476,0.002,2859.3,2859.2,0.7494]
[1763956321655,0.002,2859.3,2859.2,0.78437481]
[1763956321862,0.002,2859.3,2859.2,1.1322]
[1763956322170,0.002,2859.3,2859.2,4.72968181]
[1763956322373,0.002,2859.6,2859.2,4.88665662]
[1763956322573,0.002,2859.7,2859.5,0.4602]
[1763956322880,0.002,2860.0,2859.6,0.4602]
[1763956323085,0.002,2860.0,2859.9,0.5602]
[1763956323451,0.002,2860.0,2859.9,1.043]
[1763956323651,0.002,2860.0,2859.9,0.943]
[1763956323957,0.002,2860.0,2859.9,1.043]
[1763956327553,1.03888208,2862.3,2860.5,0.4607]
[1763956327887,0.1973,2862.4,2860.2,0.1995]
[1763956327888,0.1212,2861.9,2860.2,0.1995]
[1763956328058,0.1212,2861.9,2860.7,0.1]
[1763956328059,0.4902,2861.8,2860.7,0.1]
[1763956328257,0.37,2860.8,2860.2,0.1]
[1763956328447,1.50284128,2860.7,2860.2,0.5972]
[1763956328648,0.4902,2861.6,2860.7,0.1]
[1763956328898,0.81614662,2861.5,2859.9,0.1995]
[1763956329047,0.32589298,2861.4,2860.2,0.1]
[1763956329247,0.81609298,2861.4,2860.5,0.1]
[1763956329485,0.4902,2861.4,2860.5,0.1]
[1763956329659,0.4902,2861.3,2860.9,0.1]
[1763956329863,0.1722,2861.0,2860.9,0.1]
[1763956330277,0.6592,2861.0,2860.6,0.1]
[1763956330458,0.6592,2861.0,2859.9,0.1995]
[1763956330459,0.1973,2860.9,2859.9,0.1995]
[1763956330645,0.6843,2860.9,2860.3,0.1]
[1763956330873,0.6843,2860.9,2859.9,0.1995]
[1763956330874,0.4902,2861.7,2860.8,0.4607]
[1763956331074,0.4902,2861.7,2861.1,0.1]
[1763956331685,0.6114,2861.9,2861.4,0.1]
[1763956332550,0.1212,2861.9,2861.7,0.1]
[1763956332753,0.6114,2861.9,2861.6,0.1]
[1763956333153,0.1722,2861.7,2861.6,0.1]
[1763956333984,0.1212,2861.9,2861.6,0.1]
[1763956334481,0.1212,2861.9,2861.3,0.1]
[1763956334482,0.4759,2861.7,2861.3,0.1]
[1763956334688,0.4759,2861.7,2860.7,0.1995]
[1763956334689,0.3076,2861.9,2861.1,0.1]
[1763956334892,0.4902,2861.8,2861.1,0.1]
[1763956335752,0.4902,2861.8,2860.7,0.23445647]
[1763956335952,0.4902,2861.8,2861.4,0.1]
[1763956336954,0.1722,2861.5,2860.9,0.1]
[1763956337160,0.1722,2861.5,2861.1,0.1]
[1763956337490,0.1212,2861.9,2861.4,0.5607]
[1763956337665,0.1212,2861.9,2861.5,0.1]
[1763956337871,0.4902,2861.8,2861.5,0.1]
[1763956338193,0.223,2862.1,2861.5,0.1]
[1763956338400,0.223,2862.1,2861.8,0.1]
[1763956338616,0.223,2862.1,2861.5,0.4972]
[1763956338898,0.223,2862.1,2862.0,0.5607]
[1763956339098,0.223,2862.1,2862.0,0.1]
[1763956339907,0.8062,2862.1,2860.9,0.7202]
[1763956340201,0.7092,2862.1,2861.3,0.1]
[1763956340414,0.7092,2862.1,2861.7,0.1]
[1763956340966,0.7112,2862.1,2861.7,0.1]
[1763956341167,0.225,2862.1,2861.7,0.1]
[1763956341388,0.4902,2862.0,2861.7,0.1]
[1763956341785,0.002,2862.1,2861.4,0.4972]
[1763956341980,0.002,2862.1,2862.0,0.1]
[1763956342414,0.099,2862.1,2862.0,0.1]
[1763956342970,0.5852,2862.1,2861.8,0.1]
[1763956343167,0.5852,2862.1,2861.5,0.1]
[1763956343168,0.2982,2861.9,2861.5,0.1]
[1763956343694,0.7806,2861.9,2861.5,0.1]
[1763956344600,0.4824,2861.8,2861.5,0.1]
[1763956344800,0.1047,2861.6,2861.5,0.1]
[1763956346689,0.5833,2861.6,2861.2,0.1]
[1763956348122,0.4786,2861.6,2861.2,0.1]
[1763956348317,0.1084,2861.3,2861.2,0.1]
[1763956348686,0.4786,2861.6,2861.2,0.1]
[1763956349019,0.4203,2861.9,2861.5,0.5607]
[1763956349020,0.223,2861.9,2861.5,0.5607]
[1763956349320,0.223,2861.9,2861.8,0.1]
[1763956349890,0.32,2861.9,2861.8,0.1]
[1763956350519,0.5163,2861.9,2861.8,0.1]
[1763956350722,1.0035,2861.9,2861.4,0.1]
[1763956351112,0.4902,2861.8,2861.3,0.1]
[1763956351291,0.098,2861.5,2861.3,0.1]
[1763956351649,0.098,2861.5,2860.0,3.53140215]
[1763956351650,0.098,2861.4,2860.5,0.6967]
[1763956351936,0.32645123,2861.3,2860.0,0.1]
[1763956352089,0.098,2860.4,2860.0,0.1]
[1763956352486,0.7845,2860.4,2860.0,0.1]
[1763956353390,0.002,2860.1,2859.9,0.001]
[1763956353588,0.097,2860.0,2859.9,0.001]
[1763956354195,0.4882,2860.3,2859.9,0.001]
[1763956354928,0.1009,2860.0,2859.9,0.001]
[1763956355923,0.4882,2860.3,2859.9,0.001]
[1763956356134,0.4193,2860.4,2859.9,0.4617]
[1763956356339,0.9095,2860.4,2860.1,0.1]
[1763956356824,0.0989,2860.2,2860.1,0.1]
[1763956357239,0.223,2860.4,2860.1,0.1]
[1763956357392,0.0907,2860.2,2859.9,0.101]
[1763956358427,0.4974,2860.1,2859.9,0.001]
[1763956358616,0.0907,2860.0,2859.9,0.001]
[1763956359395,0.5841,2860.0,2859.9,0.001]
[1763956362092,0.0907,2860.0,2859.9,0.001]
[1763956363528,0.5841,2860.0,2859.9,0.001]
[1763956367000,0.0907,2860.0,2859.9,0.001]
[1763956367212,0.565,2860.0,2859.9,0.001]
[1763956367853,10.38150349,2860.0,2859.9,0.001]
[1763956368016,13.39203478,2860.0,2859.9,0.001]
[1763956368426,7.07203478,2860.0,2859.9,0.001]
[1763956368626,1.11259264,2859.9,2859.6,0.001]
[1763956368838,7.51302328,2859.7,2859.6,0.001]
[1763956369153,8.06132925,2859.7,2859.6,0.001]
[1763956369350,9.44757833,2859.7,2859.6,0.001]
[1763956369549,6.04908964,2859.6,2859.3,0.001]
[1763956369767,0.1113,2859.4,2859.3,0.001]
[1763956370253,0.8086,2859.4,2859.3,0.001]
[1763956374257,0.223,2859.4,2859.3,0.001]
[1763956374553,0.6995,2859.4,2859.3,0.001]
[1763956375147,0.8331,2859.4,2859.3,0.001]
[1763956375566,0.1974,2860.5,2859.3,1.0786]
[1763956375864,0.1974,2860.5,2859.7,0.1]
[1763956375865,0.223,2860.2,2859.7,0.1]
[1763956376237,0.223,2860.2,2859.8,0.4997]
[1763956377057,0.002,2860.1,2859.8,0.4997]
[1763956377437,0.002,2860.1,2860.0,0.4779]
[1763956377637,0.002,2860.1,2860.0,0.5779]
[1763956377956,0.002,2860.1,2860.0,1.0776]
[1763956380257,0.002,2860.1,2860.0,1.53502814]
[1763956380864,0.002,2860.1,2860.0,1.0776]
[1763956382954,0.002,2860.1,2860.0,0.4779]
[1763956383543,0.002,2860.1,2859.6,0.4997]
[1763956383868,0.002,2860.1,2859.8,0.1]
[1763956384066,0.002,2860.1,2860.0,0.5779]
[1763956384562,0.002,2860.1,2860.0,0.9776]
[1763956384765,0.002,2860.1,2860.0,1.0776]
[1763956387236,0.002,2860.1,2860.0,0.9776]
[1763956387464,0.002,2860.1,2860.0,1.0776]
[1763956388952,0.002,2860.1,2860.0,4.60906852]
[1763956389358,0.002,2860.1,2860.0,5.41963684]
[1763956389852,0.002,2860.1,2860.0,1.88816832]
[1763956390166,0.002,2860.1,2860.0,4.57410349]
[1763956390670,0.002,2860.1,2860.0,1.0776]
[1763956390967,0.002,2860.1,2860.0,4.57410349]
[1763956391368,0.002,2860.1,2860.0,4.60906852]
[1763956392469,0.002,2860.1,2860.0,4.57410349]
[1763956392834,0.223,2861.6,2861.5,0.1]
[1763956393371,0.9533,2861.6,2861.5,0.1]
[1763956393569,0.9533,2861.6,2861.3,0.1]
[1763956394549,0.0047,2861.4,2861.3,0.1]
[1763956395073,0.223,2861.6,2861.3,0.1]
[1763956395383,0.6968,2861.6,2861.3,0.1]
[1763956395943,0.4838,2861.4,2860.8,0.1]
[1763956396292,0.0025,2861.2,2860.8,0.1]
[1763956396692,0.4763,2861.2,2860.8,0.1]
[1763956397884,0.4503,2860.9,2860.3,0.465]
[1763956398282,3.6905296,2861.9,2860.1,0.1855]
[1763956398283,0.002,2862.1,2860.8,0.4606]
[1763956398462,0.6342,2862.1,2861.8,0.1]
[1763956398798,0.6342,2862.1,2861.1,0.1855]
[1763956398957,0.002,2862.1,2862.0,0.1]
[1763956401891,0.722,2862.1,2861.8,0.1]
[1763956404017,0.1794,2861.9,2861.5,0.1]
[1763956404471,0.4738,2861.8,2861.5,0.1]
[1763956404963,0.263,2861.6,2860.9,0.1855]
[1763956405166,0.263,2861.6,2861.1,0.1]
[1763956405493,0.6485,2861.9,2861.6,0.1]
[1763956405793,0.6485,2861.9,2860.8,0.1]
[1763956405991,0.4738,2861.8,2860.8,0.1]
[1763956406192,0.4738,2861.8,2861.1,0.1]
[1763956406396,0.1747,2861.9,2861.1,0.1]
[1763956406602,0.6485,2861.9,2861.4,0.1]
[1763956407102,0.2677,2861.5,2861.4,0.1]
[1763956407463,0.2677,2861.5,2860.7,0.1855]
[1763956407464,0.7394,2861.5,2860.7,0.1855]
[1763956407685,0.9624,2861.5,2861.0,0.1]
[1763956407900,0.4717,2861.4,2860.6,0.465]
[1763956408194,0.4717,2861.4,2860.8,0.1]
[1763956412718,0.223,2861.5,2860.8,0.465]
[1763956412875,0.223,2861.6,2861.3,0.1]
[1763956415136,0.223,2861.6,2861.5,0.5606]
[1763956416093,0.9624,2861.6,2861.1,0.1]
[1763956416427,0.2651,2861.2,2860.7,0.1855]
[1763956416635,0.2651,2861.2,2860.8,0.1]
[1763956417325,0.223,2861.6,2861.0,0.1]
[1763956417534,0.4982,2861.5,2861.0,0.1]
[1763956418538,0.2436,2861.1,2861.0,0.1]
[1763956418718,0.2436,2861.1,2860.7,0.1855]
[1763956418897,0.2436,2861.1,2860.7,0.2855]
[1763956420400,0.2436,2861.1,2860.7,0.7699]
[1763956420629,0.2436,2861.1,2860.7,0.6699]
[1763956420835,0.4982,2861.5,2861.0,0.1]
[1763956421239,0.32726679,2861.4,2861.0,0.1]
[1763956421734,0.32726679,2861.4,2861.3,0.4666]
[1763956421926,0.32726679,2861.5,2861.3,0.5666]
[1763956422128,0.223,2861.6,2861.4,0.4666]
[1763956422301,0.223,2861.6,2861.3,0.5844]
[1763956422302,0.223,2861.6,2861.3,0.1]
[1763956422698,0.223,2861.6,2861.5,0.4666]
[1763956422925,0.223,2861.6,2861.5,1.051]
[1763956423136,0.225,2862.1,2861.5,0.951]
[1763956423439,0.32727008,2862.0,2861.8,0.1]
[1763956423598,0.32727008,2861.9,2861.8,0.1]
[1763956423798,0.236,2861.9,2861.8,0.1]
[1763956424000,1.24117008,2861.9,2861.3,0.4844]
[1763956424198,0.005,2861.6,2861.2,0.1]
[1763956424626,0.32727008,2861.8,2861.5,0.5632]
[1763956424823,0.1823,2861.9,2861.5,0.5632]
[1763956425136,0.2382,2861.6,2861.5,0.1]
[1763956425942,0.7315,2861.6,2861.2,0.1]
[1763956426251,0.0049,2861.3,2861.0,0.1]
[1763956426701,0.2333,2861.1,2861.0,0.1]
[1763956427535,0.4959,2861.3,2861.0,0.1]
[1763956428045,0.223,2861.5,2861.0,0.1]
[1763956428349,0.223,2861.5,2861.4,0.4632]
[1763956428937,0.223,2861.5,2861.3,0.1]
[1763956434329,0.223,2861.5,2861.4,0.4632]
[1763956434840,0.223,2861.5,2861.3,0.1]
[1763956434841,0.4612,2861.5,2861.3,0.1]
[1763956436054,0.0049,2861.4,2860.8,0.4967]
[1763956436263,0.0049,2861.4,2861.0,0.1]
[1763956436465,0.4959,2861.3,2861.0,0.1]
[1763956436622,0.2382,2861.1,2860.7,0.1]
[1763956437063,0.7315,2861.1,2860.7,0.1]
[1763956437359,0.0049,2860.8,2860.7,0.1]
[1763956440438,0.0049,2860.8,2860.4,0.1]
[1763956440966,0.2409,2860.5,2860.0,0.001]
[1763956441128,0.4959,2860.7,2860.1,0.1]
[1763956441129,0.32785693,2860.7,2860.1,0.1]
[1763956441329,0.222,2860.9,2860.5,0.1]
[1763956441330,0.32785693,2860.8,2860.5,0.1]
[1763956441546,0.73815693,2860.9,2860.5,0.1]
[1763956441759,1.23405693,2860.9,2860.5,0.1]
[1763956441936,0.2441,2860.6,2860.5,0.1]